Cogmind - Beta 14 @@@ ROGUE MODE // 2025.04.27 @ 22:27:14 Player: DuckBoy Result: Destroyed by RH-OM1(R) with Subdweller Shrapnel Launcher Performance ------------- Evolutions (0) 0 Regions Visited (2) 400 Robots Destroyed (32) 160 Value Destroyed (836) 836 Prototype IDs (2) 40 Alien Tech Used (0) 0 Bonus (35) 35 TOTAL SCORE: 1471 Bonus ------- High Alert Combat Kills 35 Cogmind --------- Core Integrity 0/250 Matter 226/300 Energy 58/200 System Corruption 1% Temperature Cool (0) Movement Treading (240) Ox1 Location -10/Subcaves Parts ------- > --- POWER (1) -------- Subdweller Power Source > --- PROPULSION (2) --- Light Treads Light Treads > --- UTILITY (2) ------ Cooling System High-capacity Storage Unit > --- WEAPON (2) ------- Medium Laser Medium Laser > --- INVENTORY (20) --- Cooling System Structural Scanner Light Armor Plating Light Armor Plating EM Pulse Gun Medium Laser Medium Laser Medium Laser Medium Laser Small Laser Light Assault Rifle Subdweller Machine Gun Grenade Launcher Grenade Launcher Rocket Launcher Rocket Launcher Rocket Launcher Rocket Launcher Peak State ------------ > --- POWER ------------ Subdweller Power Source > --- PROPULSION ------- Light Treads Light Treads > --- UTILITY ---------- Cooling System High-capacity Storage Unit > --- WEAPON ----------- Medium Laser Medium Laser > --- INVENTORY -------- Cooling System Structural Scanner Light Armor Plating Light Armor Plating EM Pulse Gun Medium Laser Medium Laser Medium Laser Medium Laser Small Laser Light Assault Rifle Subdweller Machine Gun Grenade Launcher Grenade Launcher Rocket Launcher Rocket Launcher Rocket Launcher Rocket Launcher [Rating: 11] Favorites ----------- Power Light Ion Engine Engine Light Ion Engine Propulsion Light Treads Treads Light Treads Utility High-capacity Storage Unit Device Structural Scanner Storage High-capacity Storage Unit Protection Light Armor Plating Weapon Grenade Launcher Energy Gun Medium Laser Ballistic Gun Light Assault Rifle Launcher Grenade Launcher Build | -11 -10 -10 ------- Run | Yrd Mat Sub Slots Evolved . | . . . Power . | . . . Propulsion . | . . . Utility . | . . . Weapon . | . . . Parts Attached 18 | 6 6 6 Power 3 | 1 1 1 Engine 3 | 1 1 1 Core . | . . . Reactor . | . . . Propulsion 4 | 2 . 2 Treads 4 | 2 . 2 Leg . | . . . Wheel . | . . . Hover . | . . . Flight . | . . . Utility 6 | 1 3 2 Device 3 | . 2 1 Storage 2 | 1 1 . Processor . | . . . Hackware . | . . . Protection 1 | . . 1 Artifact . | . . . Weapon 5 | 2 2 1 Energy Gun 3 | 1 1 1 Energy Cannon . | . . . Ballistic Gun 1 | 1 . . Ballistic Cannon . | . . . Launcher 1 | . 1 . Special Weapon . | . . . Impact Weapon . | . . . Slashing Weapon . | . . . Piercing Weapon . | . . . Special Melee Weapon . | . . . Unidentified Prototypes . | . . . Parts Lost 3 | . 1 2 Power 2 | . 1 1 Propulsion 1 | . . 1 Utility . | . . . Weapon . | . . . Highest Loss Streak 2 | . 1 2 To Critical Strikes . | . . . Average Slot Usage (%) 98 | . 97 99 Engine 13 | . 13 13 Treads 27 | . 28 27 Device 10 | . 12 7 Storage 14 | . 14 14 Protection 2 | . . 6 Energy Gun 10 | . 6 20 Ballistic Gun 6 | . 9 . Launcher 11 | . 12 7 Peak Build Rating 11 | 6 9 11 Average Rating 8 | 4 8 9 On Entrance 5 | . 6 9 Naked Turns . | . . . Heaviest Build 51 | 10 49 51 Greatest Support 40 | 40 40 40 Greatest Overweight (x) 2 | . 1 2 Average Overweight (x) . | . . 1 Largest Inventory Capacity 20 | 8 20 20 Average Capacity 17 | 6 16 20 Most Carried 20 | 3 17 20 Average Carried 13 | 1 12 17 Final Capacity 20 | 8 20 20 Final Carried 18 | 3 17 18 Class Distribution -------------------- 100% | Mutant Dominant Class ---------------- Mutant | -10/Materials Mutant | -10/Subcaves Resources | -11 -10 -10 ----------- Run | Yrd Mat Sub Matter Collected 581 | 228 257 96 Remotely . | . . . Salvage Created 758 | . 471 287 Parts 46 | . 29 17 Haulers Intercepted 2 | . 2 . Recyclers Shooed . | . . . Parts Field Recycled . | . . . Retrieved Matter . | . . . Parts Self-Destructed 4 | . . 4 Prevented . | . . . Kills | -11 -10 -10 ------- Run | Yrd Mat Sub Combat Hostiles Destroyed 17 | . 13 4 Guns 6 | . 3 3 AOE 11 | . 10 1 Classes Destroyed 10 | . 8 2 Worker 7 | . 7 . Tunneler 1 | . 1 . Hauler 2 | . 2 . Mechanic 1 | . 1 . Operator 1 | . 1 . Watcher 3 | . 3 . Swarmer 4 | . 3 1 Grunt 10 | . 10 . Sentry 1 | . . 1 Subdweller 2 | . . 2 Best Kill Streak 13 | . 13 2 Combat Bots Only 4 | . 4 2 Max Kills in Single Turn 8 | . 8 1 Gunslinging . | . . . Exploded 1 | . 1 1 Melee . | . . . Uniques/NPCs Destroyed . | . . . Combat | -11 -10 -10 -------- Run | Yrd Mat Sub Hostile Shots Fired 79 | . 54 25 Missed 23 | . 14 9 Damage Taken 836 | . 493 343 Core 252 | . 134 118 Absorbed by Shields . | . . . Core Remaining (%) 100 | 100 . . Volleys Fired 78 | . 49 29 Largest 2 | . 2 2 Hottest 100 | . 60 100 Shots Fired 120 | . 63 57 Gun 94 | . 38 56 Cannon . | . . . Launcher 26 | . 25 1 Special . | . . . Kinetic 13 | . 13 . Thermal 81 | . 25 56 Explosive 26 | . 25 1 Electromagnetic . | . . . Robot Hit Streak 24 | . 11 24 Robot Miss Streak 9 | . 9 1 Penetration Max . | . . . Secondary Targets 2 | . 1 1 Max Gunslinging Chain 1 | . 1 1 Shots Hit Robots 81 | . 31 50 Core Hits 52 | . 37 15 Critical Kills . | . . . Critical Parts Destroyed . | . . . Critical Strikes 6 | . 1 5 Burn 6 | . 1 5 Melee Attacks . | . . . Impact . | . . . Slashing . | . . . Piercing . | . . . Sneak Attacks . | . . . Combat Hostiles . | . . . Follow-up Attacks . | . . . Damage Inflicted 2897 | . 2224 673 Guns 862 | . 236 626 Cannons . | . . . Explosions 2035 | . 1988 47 Melee . | . . . Ramming . | . . . Kinetic 54 | . 54 . Thermal 1882 | . 1256 626 Explosive 961 | . 914 47 Electromagnetic . | . . . Impact . | . . . Slashing . | . . . Piercing . | . . . Highest Corruption 1 | . 1 1 Average Corruption 1 | . 1 1 Corruption Purged . | . . . Corruption Blocked . | . . . Effects 10 | . 6 4 Message Errors 1 | . . 1 Matter Fused 2 | . 2 . Heat Flow Errors 1 | . 1 . Energy Discharges 2 | . . 2 Data Loss (minor) 2 | . 1 1 Data Loss (major) 1 | . 1 . Misfires 1 | . 1 . Overload Shots . | . . . Overflow Damage 315 | . 315 . Projectiles . | . . . Explosions 315 | . 315 . Melee . | . . . Knockbacks . | . . . Impact . | . . . Kinetic . | . . . Secondary . | . . . Self-Inflicted Damage 27 | . 27 . Shots 3 | . 3 . Rammed . | . . . Targets Rammed . | . . . Kicked . | . . . Crushed . | . . . Highest Temperature 101 | . 101 . Average Temperature 37 | . 37 . Received Heat Transfer 213 | . 186 27 Siege Activations . | . . . Robots Corrupted . | . . . Combat Hostiles . | . . . Parts Fried . | . . . Impact Corruptions . | . . . Robots Melted . | . . . Combat Hostiles . | . . . Parts Melted 2 | . 1 1 Heat Transferred 3427 | . 1207 2220 Parts Sabotaged . | . . . Parts Stolen . | . . . Parts Stripped . | . . . Power Chain Reactions . | . . . Alert | -11 -10 -10 ------- Run | Yrd Mat Sub Peak Influence 562 | . 562 . Initial . | . . . Average 225 | . 240 . Maximum Alert Level 2 | . 2 . Low Security (%) 60 | 100 58 . Level 1 . | . . . Level 2 38 | . 41 . Level 3 . | . . . Level 4 . | . . . Level 5 . | . . . High Security . | . . . Max Security . | . . . Squads Dispatched 1 | . 1 . Investigation . | . . . Extermination . | . . . Reinforcement 1 | . 1 . Assault . | . . . Garrison . | . . . Intercept . | . . . Searches Triggered . | . . . Construction Impeded . | . . . Haulers Reinforced . | . . . Active Scanning Responses . | . . . Cargo Convoy Interrupts . | . . . Stealth | -11 -10 -10 --------- Run | Yrd Mat Sub Distress Signals 3 | . 3 . Communications Jammed . | . . . Distress Signals . | . . . Times Spotted 23 | . 18 5 Peak Tracking Total 5 | . 5 3 Tactical Retreats . | . . . Traps | -11 -10 -10 ------- Run | Yrd Mat Sub Traps Triggered 1 | . 1 . Indirectly . | . . . Trap Hack Attempts . | . . . Triggered . | . . . Disarmed . | . . . Reprogrammed . | . . . Reused . | . . . Traps Extracted . | . . . Installed . | . . . Triggered . | . . . Machines | -11 -10 -10 ---------- Run | Yrd Mat Sub Machines Disabled 21 | . 21 . Max in Single Turn 19 | . 19 . Machines Repaired . | . . . Machines Dismantled . | . . . Machines Sabotaged . | . . . Overloaded Fab Kills . | . . . Hacking | -11 -10 -10 --------- Run | Yrd Mat Sub Machines Accessed 4 | . 4 . Terminals 4 | . 4 . Fabricators . | . . . Repair Stations . | . . . Recycling Units . | . . . Scanalyzers . | . . . Garrison Access . | . . . Total Hacks 10 | . 10 . Successful 4 | . 4 . Failed 6 | . 6 . Catastrophic . | . . . Database Lockouts . | . . . Manual 7 | . 7 . Terminals 10 | . 10 . Fabricators . | . . . Repair Stations . | . . . Recycling Units . | . . . Scanalyzers . | . . . Garrison Access . | . . . Terminal Hacks 4 | . 4 . Robot Schematic 1 | . 1 . Prototype ID Bank 1 | . 1 . Terminal Index 1 | . 1 . Dispatch Records 1 | . 1 . Fabricator Hacks . | . . . Repair Station Hacks . | . . . Recycling Unit Hacks . | . . . Scanalyzer . | . . . Garrison Access Hacks . | . . . Unauthorized Hacks . | . . . Terminals . | . . . Fabricators . | . . . Repair Stations . | . . . Recycling Units . | . . . Scanalyzers . | . . . Garrison Access . | . . . Data Cores Recovered . | . . . Used . | . . . Hacking Detections 4 | . 4 . Full Trace Events . | . . . Feedback Events . | . . . Feedback Blocked . | . . . Robot Schematics Acquired 1 | . 1 . Robots Built . | . . . Authchips . | . . . Time . | . . . Total Robot Build Rating . | . . . Part Schematics Acquired . | . . . Parts Built . | . . . Authchips . | . . . Time . | . . . Total Part Build Rating . | . . . Parts Repaired . | . . . Time . | . . . Parts Recycled . | . . . Recycled Matter . | . . . Retrieved Matter . | . . . Retrieved Components . | . . . Parts Scanalyzed . | . . . Part Schematics Acquired . | . . . Parts Damaged . | . . . Bothacking | -11 -10 -10 ------------ Run | Yrd Mat Sub Used RIF Installer . | . . . Robots Hacked . | . . . Non-combat . | . . . Combat . | . . . Robot Hacks Applied . | . . . Relay Couplers Released . | . . . Fabnet Peak Effective % . | . . . Robots Rewired . | . . . Allies Hacked . | . . . Hacks Repelled . | . . . Allies | -11 -10 -10 -------- Run | Yrd Mat Sub Total Allies . | . . . Largest Group . | . . . Highest-Rated Group . | . . . Highest-Rated Ally . | . . . Total Orders . | . . . Ally Attacks . | . . . Total Damage . | . . . Kills . | . . . Allies Corrupted . | . . . Allies Melted . | . . . Intel | -11 -10 -10 ------- Run | Yrd Mat Sub Robot Analysis Total . | . . . Derelict Logs Recovered . | . . . Drone Launches . | . . . Drone Recoveries . | . . . Exploration | -11 -10 -10 ------------- Run | Yrd Mat Sub Turns Passed 2103 | 90 1352 661 Spaces Moved 854 | 50 574 230 Core 1 | 1 . . Treads 853 | 49 574 230 Legs . | . . . Wheels . | . . . Hover . | . . . Flight . | . . . Fastest Speed 50 | 50 160 240 Average Speed 215 | 157 210 240 Slowest Speed 320 | 160 240 320 Overloaded Moves . | . . . Propulsion Burnouts . | . . . Robots Hopped . | . . . Cave-ins Triggered . | . . . Exploration Rate (%) 39 | 3 94 22 Regions Visited 2 Branch Regions 1 Pre-discovered Areas . | . . . Known Exits Taken . | . . . Unknown Exits Taken 2 | 1 1 . Scrap Searched . | . . . Spaces Dug 24 | . 21 3 Terrain Destroyed 143 | . 140 3 Melee . | . . . Projectile . | . . . AOE 143 | . 140 3 Terrain Rammed . | . . . Walls Destroyed . | . . . Machines Disabled . | . . . Actions | -11 -10 -10 --------- Run | Yrd Mat Sub Total 997 | 59 657 281 Wait 25 | . 11 14 Move 852 | 49 573 230 Hop . | . . . Pick Up 21 | 4 15 2 Fast Attach 7 | 5 2 . Attach 4 | 1 1 2 Detach 1 | . 1 . Swap 7 | . 3 4 Drop 2 | . 2 . Fire 78 | . 49 29 Melee . | . . . Ram . | . . . Kick . | . . . Crush . | . . . Escape Stasis . | . . . Rewire . | . . . Trap . | . . . Miscellaneous . | . . . Route ------- -11/Scrapyard -10/Materials (discovered 5 exits: [*Mat x3] / [*Min] / [*Sub]) -10/Subcaves History --------- Turn | Location | Event 10 | -11/Scrapyard | Discovered new exit (range 16) 91 | -11/Scrapyard | Entered Materials 302 | -10/Materials | Build established: Mutant 394 | -10/Materials | Discovered new exit (range 15) 583 | -10/Materials | Discovered new exit (range 6) 610 | -10/Materials | Discovered new exit (range 12) 740 | -10/Materials | Discovered new exit (range 14) 904 | -10/Materials | Discovered new exit (range 8) 926 | -10/Materials | Core integrity fell below 50% 1443 | -10/Materials | Entered Subcaves 2103 | -10/Subcaves | Core integrity fell below 20% 2104 | -10/Subcaves | Destroyed by RH-OM1(R) with Subdweller Shrapnel Launcher Last Messages --------------- 01928_ Acquired Sub. Machine Gun. 01939_ Subatomizers dissect the Sub. Optics. 01939_ GG-2J7(R) suffers critical hit (Burn). 01942_ GG-2J7(R) destroyed. 01947_ Acquired Sub. Power Source. 01948_ Z9-KJR(R) suffers critical hit (Burn). 01950_ Subatomizers dissect the Sub. Optics. 01972_ Z9-KJR(R) suffers critical hit (Burn). 01975_ Destroyed Scrap Shield. 01977_ Subatomizers dissect the Sub. Optics. 01978_ Z9-KJR(R) destroyed. 01988_ Subatomizers dissect the Sub. Optics. 02081_ XB-BCX(R) destroyed. 02081_ Switching to secondary target: JO-TZ8(R). 02085_ JO-TZ8(R) affixes Scrap Shield Fragment to Scrap Shield. 02086_ Lgt. Treads destroyed. 02090_ Lgt. Ion Engine destroyed. 02093_ JO-TZ8(R) suffers critical hit (Burn). 02093_ Sub. Machine Gun melted. 02093_ JO-TZ8(R) destroyed. Map ----- +----------------------------------------------------+ | ????????????????????????????????????????????? | | ????????????????????????????????????????????? | | ????????????????????????????????????????????? | | ????????????????????????????????????????????? | | ????????????????????????????????????????????? | | ????????????????????????????????????????????? | | ????????????????????????????????????????????? | | ????????????????????????????????????????????? | | ????????????????????????????????????????????? | | ????????????????????????????????????????????? | | ????????????????????????????????????????????? | | ?????????? ??????????? ?????????????????????? | | ???????? ?????????? ?????????????????????? | | ???????? ?????????# ?????????????????????? | | ???????? #??????## #????????????????????? | | ???????? #??????# # #????????????????????? | | ????????? ?????? ????????????????????? | | ????????? #??????? ????????????????????? | | ????????? ??????## ##???????????????????? | | ?????????# #????$?? ##??????????????????? | | ????????## #?????<##< #??????????????????? | | ##??????? #?????? #?##???????????????? | | ##?????## ##??????#< ##;##??????????????? | | ##??### #?????## ! ;; ; #??????????????? | | #### ###??## % ;; ;;#??????????????? | | ## # #### *%!R@ ;#??????????????? | | & ;#?????????????? | | &" #?????????????? | | %"& ### # #######;; #?????????????? | | &&&"#?# ###?????##;; #?????????????? | | [%*##?## ### ""??#### #?????????????? | | " ##???## """""?????# #?????????????? | | #???## """""""?????# ##?????????????? | | ##???# ""##"" "????? ##??????????????? | | #????## ""#?### ???? ##???????????????? | | #?????# "#????? ??? ##????????????????? | | #?????#"""#?????? ???? #?????????????????? | | ?????#"" #??????????? #??????????????????? | | #????# ##???????????#???????????????????? | | #?????# ##????????????????????????????????? | | ??????###?????????????????????????????????? | | ???????????????????????????????????????????? | | ????????????????????????????????????????????? | | ????????????????????????????????????????????? | | ????????????????????????????????????????????? | | ###?????????????????????????????????????????? | | #?????????????????????????????????????????? | | ??????????????????????????????????????????? | | ???????????????????????????????????????????? | | ????????????????????????????????????????????? | +----------------------------------------------------+ Best States ------------- Heat Dissipation 47 Energy Generation 10 Energy Capacity 125 Matter Stores 300 Matter Capacity 300 Sight Range 16 Terrain Scan Density 10 Armor Coverage 150 Evasion (%) 40 Recoil Reduction 2 Item Schematics ----------------- None Robot Schematics ------------------ M-13 Machinist | -10/Materials | Hacked Fabricated ------------ Nothing Alien Tech Used ----------------- None Achievements -------------- None Challenges ------------ None Game ------ Seed MassGlidesysDetector Manual? 0 Play Time 00:11:56 Cumulative 454.9 hours Start 2025.04.27 @ 22:14:20 End 2025.04.27 @ 22:27:14 Sessions 1 Manual Loads 0 Difficulty Rogue Special Mode None Game No. 290 Rogue 287 Adventurer 3 Explorer 0 Win Type - Total 8 Types 7/0/1/0/0/0/0/0/0 Lore% 60 Gallery% 74 Achievement% 67 Wizard Run 0 Options --------- Layout 0 ASCII 0 Keyboard 0 Movement Numpad Keybinds 0 Fullscreen 1 Font 18/SmallcapsGlow Map View 76x50 Zoom Use 0% Tactical HUD 1 Map Filters NONE Filters NONE Steam 1 RUN: ef135b48-8a25-4dfa-ac66-9ad6b0ebc909